fUSD/lending_fUSD_20240420
["ID","MTS","AMOUNT","RATE_DAILY","PERIOD"]
[323034804,1713609050637,-500.0,0.00015068,2]
[323034805,1713609050646,-500.0,0.00015068,2]
[323034806,1713609050656,-1566.08,0.00015068,2]
[323034807,1713609050665,-5152.04,0.00015068,2]
[323034808,1713609050674,-500.0,0.00015068,2]
[323034809,1713609050683,-1807.16,0.00015068,2]
[323034810,1713609050693,-500.0,0.00015068,2]
[323034811,1713609050703,-500.0,0.00015068,2]
[323034812,1713609050712,-500.0,0.00015068,2]
[323034813,1713609050722,-500.0,0.00015068,2]
[323034814,1713609050731,-3479.9,0.00015068,2]
[323034815,1713609050741,-313.66725937,0.00015068,2]
[323034816,1713609050750,-500.0,0.00015068,2]
[323034817,1713609050760,-1427.64,0.00015068,2]
[323034818,1713609050769,-500.0,0.00015068,2]
[323034819,1713609050779,-500.0,0.00015068,2]
[323034820,1713609050789,-500.0,0.00015068,2]
[323034821,1713609050798,-500.0,0.00015068,2]
[323034822,1713609050807,-598.78,0.00015068,2]
[323034823,1713609050817,-7545.29,0.00015068,2]
[323034824,1713609050827,-500.0,0.00015068,2]
[323034825,1713609050836,-500.0,0.00015068,2]
[323034826,1713609050846,-3285.2,0.00015068,2]
[323034827,1713609050855,-500.0,0.00015068,2]
[323034828,1713609050865,-300.0,0.00015068,2]
[323034829,1713609050874,-11153.19435721,0.00015082,2]
[323034830,1713609050884,-151.0,0.00015082,2]
[323034831,1713609050894,-151.0,0.00015082,2]
[323034832,1713609050903,-150.0,0.00015086,2]
[323034833,1713609050913,-3000.0,0.0001512,2]
[323034834,1713609050922,-150.0,0.00015181,2]
[323034835,1713609050932,-1000.0,0.00015219,2]
[323034836,1713609050941,-429.66,0.00015223,3]
[323034837,1713609050950,-154.7379437,0.00015233,2]
[323034838,1713609050960,-150.0,0.00015234,2]
[323034839,1713609050969,-545.8088,0.00015242,2]
[323034840,1713609050978,-11153.19435721,0.00015264,2]
[323034841,1713609050988,-3800.57641598,0.00015266,2]
[323034842,1713609050997,-3000.0,0.0001528,2]
[323034843,1713609051006,-347187.11438531,0.000153,2]
[323034844,1713609051015,-175.16192813,0.000153,2]
[323034845,1713609051024,-165.910754,0.000153,2]
[323034846,1713609051034,-151.0,0.000153,2]
[323034847,1713609051043,-151.0,0.000153,2]
[323034848,1713609051052,-151.0,0.000153,2]
[323034849,1713609051062,-151.0,0.000153,2]
[323034850,1713609051071,-2059.27704,0.000153,2]
[323034851,1713609051081,-2059.27704,0.000153,2]
[323034852,1713609051090,-151.0,0.000153,2]
[323034853,1713609051099,-151.0,0.000153,2]
[323034854,1713609051109,-253.901863,0.000153,2]
[323034855,1713609051118,-151.0,0.000153,2]
[323034856,1713609051127,-203.455649,0.000153,2]
[323034857,1713609051137,-151.0,0.000153,2]
[323034858,1713609051146,-203.455649,0.000153,2]
[323034859,1713609051156,-151.0,0.000153,2]
[323034860,1713609051166,-268.150084,0.000153,2]
[323034861,1713609051176,-177.440691,0.000153,2]
[323034862,1713609051185,-151.0,0.000153,2]
[323034863,1713609051195,-177.440691,0.000153,2]
[323034864,1713609051501,-151.0,0.000153,2]
[323034865,1713609051525,-151.0,0.000153,2]
[323034866,1713609051538,-151.0,0.000153,2]
[323034867,1713609051550,-151.0,0.000153,2]
[323034868,1713609051560,-151.0,0.000153,2]
[323034869,1713609051569,-151.0,0.000153,2]
[323034870,1713609051579,-1213.925922,0.000153,2]
[323034871,1713609051588,-1213.925922,0.000153,2]
[323034872,1713609051598,-151.0,0.000153,2]
[323034873,1713609051607,-255.473721,0.000153,2]
[323034874,1713609051617,-151.0,0.000153,2]
[323034875,1713609051626,-255.473721,0.000153,2]
[323034876,1713609051635,-151.0,0.000153,2]
[323034877,1713609051645,-153.961529,0.000153,2]
[323034878,1713609051655,-150.0,0.00015303,2]
[323034879,1713609051665,-200.0,0.00015307,2]
[323034880,1713609051674,-150.0,0.00015312,2]
[323034881,1713609051684,-5435.5390372,0.00015329,2]
[323034882,1713609051694,-2339.3763167,0.00015329,2]
[323034883,1713609051703,-1037.1461984,0.00015329,2]
[323034884,1713609051713,-5144.2179262,0.00015329,2]
[323034885,1713609051722,-359.2694741,0.00015329,2]
[323034886,1713609051732,-1390.8884801,0.00015329,2]
[323034887,1713609051742,-35842.0089478,0.00015329,2]
[323034888,1713609051751,-1938.0,0.00015333,2]
[323034889,1713609051761,-807.0,0.00015333,2]
[323034890,1713609051770,-257.0,0.00015333,2]
[323034891,1713609051781,-609.0,0.00015333,2]
[323034892,1713609051791,-436.0,0.00015333,2]
[323034893,1713609051800,-1474.0,0.00015333,2]
[323034894,1713609051810,-150.0,0.00015333,2]
[323034895,1713609051819,-3118.0,0.00015333,2]
[323034896,1713609051829,-399.0,0.00015333,2]
[323034897,1713609051838,-2444.0,0.00015333,2]
[323034898,1713609051847,-1640.0,0.00015333,2]
[323034899,1713609051857,-214.0,0.00015333,2]
[323034900,1713609051867,-1140.0,0.00015333,2]
[323034901,1713609051876,-443.0,0.00015333,2]
[323034902,1713609051885,-5727.0,0.00015333,2]
[323034903,1713609051894,-461.0,0.00015333,2]
[323034904,1713609051904,-5891.0,0.00015333,2]
[323034905,1713609051914,-1393.0,0.00015333,2]
[323034906,1713609051923,-2294.0,0.00015333,2]
[323034907,1713609051934,-37676.0,0.00015333,2]
[323034908,1713609051944,-151.0,0.00015333,2]
[323034909,1713609051953,-151.0,0.00015333,2]
[323034910,1713609051963,-204.130608,0.00015333,2]
[323034911,1713609051973,-521.12,0.00015339,2]
[323034912,1713609051982,-656.10899353,0.0001534,2]
[323034913,1713609051992,-227703.5300397,0.0001534,2]
[323034914,1713609052577,-22296.4699603,0.0001534,2]
[323034915,1713609052587,-153.594007,0.0001534,2]
[323034916,1713609052596,-151.0,0.0001534,2]
[323034917,1713609052606,-151.0,0.0001534,2]
[323034918,1713609052615,-322.194178,0.0001534,2]
[323034919,1713609052624,-151.0,0.0001534,2]
[323034920,1713609052634,-151.0,0.0001534,2]
[323034921,1713609052643,-151.0,0.0001534,2]
[323034922,1713609052653,-151.0,0.0001534,2]
[323034923,1713609052663,-151.0,0.0001534,2]
[323034924,1713609052672,-151.0,0.0001534,2]
[323034925,1713609052681,-206.98170683,0.00015341,2]
[323034926,1713609052690,-2821.43249517,0.00015341,2]
[323034927,1713609052700,-300.0,0.00015341,2]
[323034928,1713609052709,-3313.96562417,0.00015342,2]
[323034929,1713609052718,-500.0,0.00015342,2]
[323034930,1713609052727,-1163.88,0.00015342,2]
[323034931,1713609052737,-535.84,0.00015342,2]
[323034932,1713609052747,-500.0,0.00015342,2]
[323034933,1713609052757,-500.0,0.00015342,2]
[323034934,1713609052767,-500.0,0.00015342,2]
[323034935,1713609052776,-500.0,0.00015342,2]
[323034936,1713609052786,-500.0,0.00015342,2]
[323034937,1713609052795,-500.0,0.00015342,2]
[323034938,1713609052803,-549.4,0.00015342,2]
[323034939,1713609052813,-500.0,0.00015342,2]
[323034940,1713609052822,-548.61,0.00015342,2]
[323034941,1713609052831,-500.0,0.00015342,2]
[323034942,1713609052842,-500.0,0.00015342,2]
[323034943,1713609052851,-500.0,0.00015342,2]
[323034944,1713609052860,-521.27,0.00015342,2]
[323034945,1713609052870,-500.0,0.00015342,2]
[323034946,1713609052879,-500.0,0.00015342,2]
[323034947,1713609052889,-500.0,0.00015342,2]
[323034948,1713609052898,-500.0,0.00015342,2]
[323034949,1713609052908,-500.0,0.00015342,2]
[323034950,1713609052917,-639.36,0.00015342,2]
[323034951,1713609052927,-500.0,0.00015342,2]
[323034952,1713609052936,-500.0,0.00015342,2]
[323034953,1713609052946,-500.0,0.00015342,2]
[323034954,1713609052956,-862.12,0.00015342,2]
[323034955,1713609052965,-500.0,0.00015342,2]
[323034956,1713609052975,-897.45,0.00015342,2]
[323034957,1713609052985,-500.0,0.00015342,2]
[323034958,1713609052995,-500.0,0.00015342,2]
[323034959,1713609053005,-500.0,0.00015342,2]
[323034960,1713609053015,-500.0,0.00015342,2]
[323034961,1713609053025,-648.65,0.00015342,2]
[323034962,1713609053035,-500.0,0.00015342,2]
[323034963,1713609053045,-500.0,0.00015342,2]
[323034964,1713609053055,-500.0,0.00015342,2]
[323034965,1713609053065,-500.0,0.00015342,2]
[323034966,1713609053074,-500.0,0.00015342,2]
[323034967,1713609053084,-500.0,0.00015342,2]
[323034968,1713609053093,-500.0,0.00015342,2]
[323034969,1713609053102,-500.0,0.00015342,2]
[323034970,1713609053111,-500.0,0.00015342,2]
[323034971,1713609053120,-529.19,0.00015342,2]
[323034972,1713609053130,-500.0,0.00015342,2]
[323034973,1713609053139,-500.0,0.00015342,2]
[323034974,1713609053148,-500.0,0.00015342,2]
[323034975,1713609053157,-500.0,0.00015342,2]
[323034976,1713609053168,-500.0,0.00015342,2]
[323034977,1713609053177,-500.0,0.00015342,2]
[323034978,1713609053186,-500.0,0.00015342,2]
[323034979,1713609053196,-500.0,0.00015342,2]
[323034980,1713609053204,-500.0,0.00015342,2]
[323034981,1713609053214,-500.0,0.00015342,2]
[323034982,1713609053223,-500.0,0.00015342,2]
[323034983,1713609053232,-500.0,0.00015342,2]
[323034984,1713609053242,-500.0,0.00015342,2]
[323034985,1713609053251,-597.94,0.00015342,2]
[323034986,1713609053260,-500.0,0.00015342,2]
[323034987,1713609053269,-500.0,0.00015342,2]
[323034988,1713609053278,-340.1922861,0.00015342,2]
[323034989,1713609053288,-500.0,0.00015342,2]
[323034990,1713609053297,-500.0,0.00015342,2]
[323034991,1713609053306,-495.96,0.00015342,2]
[323034992,1713609053315,-564.25,0.00015342,2]
[323034993,1713609053324,-500.0,0.00015342,2]
[323034994,1713609053333,-500.0,0.00015342,2]
[323034995,1713609053342,-500.0,0.00015342,2]
[323034996,1713609053351,-500.0,0.00015342,2]
[323034997,1713609053360,-500.0,0.00015342,2]
[323034998,1713609053369,-500.0,0.00015342,2]
[323034999,1713609053378,-500.0,0.00015342,2]
[323035000,1713609053387,-500.0,0.00015342,2]
[323035001,1713609053396,-500.0,0.00015342,2]
[323035002,1713609053405,-500.0,0.00015342,2]
[323035003,1713609053414,-500.0,0.00015342,2]
[323035004,1713609053423,-500.0,0.00015342,2]
[323035005,1713609053433,-500.0,0.00015342,2]
[323035006,1713609053444,-500.0,0.00015342,2]
[323035007,1713609053453,-500.0,0.00015342,2]
[323035008,1713609053464,-500.0,0.00015342,2]
[323035009,1713609053478,-500.0,0.00015342,2]
[323035010,1713609053487,-500.0,0.00015342,2]
[323035011,1713609053496,-500.0,0.00015342,2]
[323035012,1713609053506,-500.0,0.00015342,2]
[323035013,1713609053517,-500.0,0.00015342,2]
[323035014,1713609053526,-521.62,0.00015342,2]
[323035015,1713609053536,-152.08537207,0.00015342,2]
[323035016,1713609053546,-421.89213561,0.00015342,2]
[323035017,1713609053556,-500.0,0.00015342,2]
[323035018,1713609053569,-500.0,0.00015342,2]
[323035019,1713609053578,-507.68,0.00015342,2]
[323035020,1713609053588,-500.0,0.00015342,2]
[323035021,1713609053597,-500.0,0.00015342,2]
[323035022,1713609053606,-500.0,0.00015342,2]
[323035023,1713609053615,-502.58960814,0.00015342,2]
[323035024,1713609053625,-500.0,0.00015342,2]
[323035025,1713609053634,-500.0,0.00015342,2]
[323035026,1713609053643,-566.55,0.00015342,2]
[323035027,1713609053653,-500.0,0.00015342,2]
[323035028,1713609053662,-500.0,0.00015342,2]
[323035029,1713609053671,-500.0,0.00015342,2]
[323035030,1713609053681,-857.51,0.00015342,2]
[323035031,1713609053690,-257.99218223,0.00015342,2]
[323035032,1713609053699,-500.0,0.00015342,2]
[323035033,1713609053708,-151.0,0.00015342,2]
[323035034,1713609053718,-500.0,0.00015342,2]
[323035035,1713609053727,-500.0,0.00015342,2]
[323035036,1713609053736,-500.0,0.00015342,2]
[323035037,1713609053746,-500.0,0.00015342,2]
[323035038,1713609053755,-500.0,0.00015342,2]
[323035039,1713609053764,-500.0,0.00015342,2]
[323035040,1713609053773,-500.0,0.00015342,2]
[323035041,1713609053783,-500.0,0.00015342,2]
[323035042,1713609053792,-500.0,0.00015342,2]
[323035043,1713609053802,-500.0,0.00015342,2]
[323035044,1713609053811,-500.0,0.00015342,2]
[323035045,1713609053821,-500.0,0.00015342,2]
[323035046,1713609053830,-500.0,0.00015342,2]
[323035047,1713609053840,-500.0,0.00015342,2]
[323035048,1713609053850,-501.32,0.00015342,2]
[323035049,1713609053859,-502.47614594,0.00015342,2]
[323035050,1713609053869,-500.0,0.00015342,2]
[323035051,1713609053879,-500.0,0.00015342,2]
[323035052,1713609053888,-500.0,0.00015342,2]
[323035053,1713609053897,-252.3487112,0.00015342,2]
[323035054,1713609053907,-504.19523458,0.00015342,2]
[323035055,1713609053916,-500.0,0.00015342,2]
[323035056,1713609053926,-500.0,0.00015342,2]
[323035057,1713609053935,-500.0,0.00015342,2]
[323035058,1713609053944,-500.0,0.00015342,2]
[323035059,1713609053954,-599.56,0.00015342,2]
[323035060,1713609053964,-500.0,0.00015342,2]
[323035061,1713609053975,-500.0,0.00015342,2]
[323035062,1713609053984,-500.0,0.00015342,2]
[323035063,1713609053994,-500.0,0.00015342,2]
[323035064,1713609054003,-500.0,0.00015342,2]
[323035065,1713609054012,-500.0,0.00015342,2]
[323035066,1713609054022,-500.0,0.00015342,2]
[323035067,1713609054032,-500.0,0.00015342,2]
[323035068,1713609054042,-500.0,0.00015342,2]
[323035069,1713609054052,-640.02,0.00015342,2]
[323035070,1713609054061,-500.0,0.00015342,2]
[323035071,1713609054071,-500.0,0.00015342,2]
[323035072,1713609054080,-541.98,0.00015342,2]
[323035073,1713609054089,-763.57,0.00015342,2]
[323035074,1713609054099,-556.79,0.00015342,2]
[323035075,1713609054109,-500.0,0.00015342,2]
[323035076,1713609054118,-1669.98,0.00015342,2]
[323035077,1713609054127,-500.0,0.00015342,2]
[323035078,1713609054137,-500.0,0.00015342,2]
[323035079,1713609054146,-500.0,0.00015342,2]
[323035080,1713609054155,-500.0,0.00015342,2]
[323035081,1713609054165,-156.088673,0.00015342,2]
[323035082,1713609054174,-500.0,0.00015342,2]
[323035083,1713609054184,-281.10221208,0.00015342,2]
[323035084,1713609054194,-500.0,0.00015342,2]
[323035085,1713609054207,-500.0,0.00015342,2]
[323035086,1713609054219,-500.0,0.00015342,2]
[323035087,1713609054232,-500.0,0.00015342,2]
[323035088,1713609054245,-504.3,0.00015342,2]
[323035089,1713609054256,-1558.43,0.00015342,2]
[323035090,1713609054266,-500.0,0.00015342,2]
[323035091,1713609054278,-500.0,0.00015342,2]
[323035092,1713609054290,-322.194178,0.00015342,2]
[323035093,1713609054302,-500.0,0.00015342,2]
[323035094,1713609054314,-500.0,0.00015342,2]
[323035095,1713609054327,-500.0,0.00015342,2]
[323035096,1713609054339,-500.0,0.00015342,2]
[323035097,1713609054351,-500.0,0.00015342,2]
[323035098,1713609054363,-587.33,0.00015342,2]
[323035099,1713609054373,-626.12,0.00015342,2]
[323035100,1713609054384,-500.0,0.00015342,2]
[323035101,1713609054396,-916.28,0.00015342,2]
[323035102,1713609054408,-1080.18,0.00015342,2]
[323035103,1713609054419,-500.0,0.00015342,2]
[323035104,1713609054431,-500.0,0.00015342,2]
[323035105,1713609054442,-500.0,0.00015342,2]
[323035106,1713609054454,-763.0,0.00015342,2]
[323035107,1713609054467,-430.53019888,0.00015342,2]
[323035108,1713609054480,-747.71,0.00015342,2]
[323035109,1713609054491,-500.0,0.00015342,2]
[323035110,1713609054501,-500.0,0.00015342,2]
[323035111,1713609054513,-561.04,0.00015342,2]
[323035112,1713609054526,-567.22,0.00015342,2]
[323035113,1713609054537,-501.84,0.00015342,2]
[323035114,1713609054551,-500.0,0.00015342,2]
[323035115,1713609054563,-500.0,0.00015342,2]
[323035116,1713609054575,-500.0,0.00015342,2]
[323035117,1713609054586,-412.43503966,0.00015342,2]
[323035118,1713609054598,-618.37,0.00015342,2]
[323035119,1713609054610,-500.0,0.00015342,2]
[323035120,1713609054622,-500.0,0.00015342,2]
[323035121,1713609054634,-500.0,0.00015342,2]
[323035122,1713609054647,-500.0,0.00015342,2]
[323035123,1713609054659,-621.49,0.00015342,2]
[323035124,1713609054672,-625.43948035,0.00015342,2]
[323035125,1713609054684,-500.0,0.00015342,2]
[323035126,1713609054697,-535.2,0.00015342,2]
[323035127,1713609054709,-500.0,0.00015342,2]
[323035128,1713609054720,-862.44,0.00015342,2]
[323035129,1713609054730,-500.0,0.00015342,2]
[323035130,1713609054740,-151.0,0.00015342,2]
[323035131,1713609054751,-500.0,0.00015342,2]
[323035132,1713609054763,-640.1,0.00015342,2]
[323035133,1713609054775,-584.08,0.00015342,2]
[323035134,1713609054787,-609.68,0.00015342,2]
[323035135,1713609054799,-531.33,0.00015342,2]
[323035136,1713609054810,-341.19476067,0.00015342,2]
[323035137,1713609054824,-556.21,0.00015342,2]
[323035138,1713609054835,-151.0,0.00015342,2]
[323035139,1713609054845,-500.0,0.00015342,2]
[323035140,1713609054855,-500.0,0.00015342,2]
[323035141,1713609054866,-785.68,0.00015342,2]
[323035142,1713609054877,-500.0,0.00015342,2]
[323035143,1713609054888,-1235.55,0.00015342,2]
[323035144,1713609054899,-762.22,0.00015342,2]
[323035145,1713609054910,-773.44,0.00015342,2]
[323035146,1713609054921,-500.0,0.00015342,2]
[323035147,1713609054933,-806.72,0.00015342,2]
[323035148,1713609054944,-500.0,0.00015342,2]
[323035149,1713609054955,-500.0,0.00015342,2]
[323035150,1713609054967,-500.0,0.00015342,2]
[323035151,1713609054978,-500.0,0.00015342,2]
[323035152,1713609054994,-151.0,0.00015342,2]
[323035153,1713609055005,-502.87,0.00015342,2]
[323035154,1713609055016,-500.0,0.00015342,2]
[323035155,1713609055027,-628.32,0.00015342,2]
[323035156,1713609055039,-1247.51,0.00015342,2]
[323035157,1713609055051,-500.0,0.00015342,2]
[323035158,1713609055062,-516.80094974,0.00015342,2]
[323035159,1713609055073,-500.0,0.00015342,2]
[323035160,1713609055084,-638.64,0.00015342,2]
[323035161,1713609055096,-500.0,0.00015342,2]
[323035162,1713609055107,-500.0,0.00015342,2]
[323035163,1713609055118,-500.0,0.00015342,2]
[323035164,1713609055128,-500.0,0.00015342,2]
[323035165,1713609055139,-813.2,0.00015342,2]
[323035166,1713609055151,-928.26,0.00015342,2]
[323035167,1713609055162,-500.0,0.00015342,2]
[323035168,1713609055173,-780.39,0.00015342,2]
[323035169,1713609055184,-500.0,0.00015342,2]
[323035170,1713609055195,-500.0,0.00015342,2]
[323035171,1713609055206,-920.0,0.00015342,2]
[323035172,1713609055217,-500.0,0.00015342,2]
[323035173,1713609055227,-500.0,0.00015342,2]
[323035174,1713609055238,-500.0,0.00015342,2]
[323035175,1713609055250,-500.0,0.00015342,2]
[323035176,1713609055260,-500.0,0.00015342,2]
[323035177,1713609055271,-20000.0,0.00015342,5]
[323035178,1713609055283,-1005.82,0.00015342,2]
[323035179,1713609055294,-500.0,0.00015342,2]
[323035180,1713609055305,-551.22,0.00015342,2]
[323035181,1713609055316,-500.0,0.00015342,2]
[323035182,1713609055327,-793.22,0.00015342,2]
[323035183,1713609055338,-726.62,0.00015342,2]
[323035184,1713609055349,-788.23,0.00015342,2]
[323035185,1713609055360,-500.0,0.00015342,2]
[323035186,1713609055371,-500.0,0.00015342,2]
[323035187,1713609055381,-151.0,0.00015342,2]
[323035188,1713609055392,-648.03,0.00015342,2]
[323035189,1713609055402,-171.420887,0.00015342,2]
[323035190,1713609055413,-648.21,0.00015342,2]
[323035191,1713609055424,-500.0,0.00015342,2]
[323035192,1713609055435,-525.28,0.00015342,2]
[323035193,1713609055446,-500.0,0.00015342,2]
[323035194,1713609055457,-500.0,0.00015342,2]
[323035195,1713609055470,-502.53,0.00015342,2]
[323035196,1713609055481,-892.0,0.00015342,2]
[323035197,1713609055492,-500.0,0.00015342,2]
[323035198,1713609055503,-500.0,0.00015342,2]
[323035199,1713609055514,-517.94,0.00015342,2]
[323035200,1713609055525,-500.0,0.00015342,2]
[323035201,1713609055536,-500.0,0.00015342,2]
[323035202,1713609055548,-500.0,0.00015342,2]
[323035203,1713609055559,-500.0,0.00015342,2]
[323035204,1713609055570,-500.0,0.00015342,2]
[323035205,1713609055581,-791.15,0.00015342,2]
[323035206,1713609055592,-500.0,0.00015342,2]
[323035207,1713609055603,-810.66,0.00015342,2]
[323035208,1713609055614,-500.0,0.00015342,2]
[323035209,1713609055625,-521.75,0.00015342,2]
[323035210,1713609055637,-500.0,0.00015342,2]
[323035211,1713609055648,-500.0,0.00015342,2]
[323035212,1713609055659,-500.0,0.00015342,2]
[323035213,1713609055669,-500.0,0.00015342,2]
[323035214,1713609055680,-500.0,0.00015342,2]
[323035215,1713609055690,-867.5,0.00015342,2]
[323035216,1713609055702,-500.0,0.00015342,2]
[323035217,1713609055713,-500.0,0.00015342,2]
[323035218,1713609055724,-500.0,0.00015342,2]
[323035219,1713609055734,-843.99,0.00015342,2]
[323035220,1713609055744,-500.0,0.00015342,2]
[323035221,1713609055755,-500.0,0.00015342,2]
[323035222,1713609055766,-1226.68,0.00015342,2]
[323035223,1713609055777,-500.0,0.00015342,2]
[323035224,1713609055788,-500.0,0.00015342,2]
[323035225,1713609055799,-946.44,0.00015342,2]
[323035226,1713609055810,-500.0,0.00015342,2]
[323035227,1713609055820,-500.0,0.00015342,2]
[323035228,1713609055831,-928.71,0.00015342,2]
[323035229,1713609055842,-500.0,0.00015342,2]
[323035230,1713609055853,-500.0,0.00015342,2]
[323035231,1713609055864,-500.0,0.00015342,2]
[323035232,1713609055874,-500.0,0.00015342,2]
[323035233,1713609055886,-500.0,0.00015342,2]
[323035234,1713609055897,-500.0,0.00015342,2]
[323035235,1713609055908,-500.0,0.00015342,2]
[323035236,1713609055921,-974.97,0.00015342,2]
[323035237,1713609055932,-500.0,0.00015342,2]
[323035238,1713609055944,-572.58,0.00015342,2]
[323035239,1713609055955,-636.11,0.00015342,2]
[323035240,1713609055966,-500.0,0.00015342,2]
[323035241,1713609055977,-500.0,0.00015342,2]
[323035242,1713609055988,-500.0,0.00015342,2]
[323035243,1713609055999,-500.0,0.00015342,2]
[323035244,1713609056010,-500.0,0.00015342,2]
[323035245,1713609056021,-500.0,0.00015342,2]
[323035246,1713609056032,-500.0,0.00015342,2]
[323035247,1713609056044,-727.52,0.00015342,2]
[323035248,1713609056055,-1307.81,0.00015342,2]
[323035249,1713609056066,-500.0,0.00015342,2]
[323035250,1713609056077,-500.0,0.00015342,2]
[323035251,1713609056088,-500.0,0.00015342,2]
[323035252,1713609056099,-698.77,0.00015342,2]
[323035253,1713609056110,-972.22,0.00015342,2]
[323035254,1713609056120,-500.0,0.00015342,2]
[323035255,1713609056132,-500.0,0.00015342,2]
[323035256,1713609056143,-531.11,0.00015342,2]
[323035257,1713609056154,-529.81,0.00015342,2]
[323035258,1713609056164,-500.0,0.00015342,2]
[323035259,1713609056175,-151.0,0.00015342,2]
[323035260,1713609056186,-500.0,0.00015342,2]
[323035261,1713609056197,-500.0,0.00015342,2]
[323035262,1713609056208,-1087.71,0.00015342,2]
[323035263,1713609056219,-864.55,0.00015342,2]
[323035264,1713609056230,-500.0,0.00015342,2]
[323035265,1713609056240,-666.46,0.00015342,2]
[323035266,1713609056251,-500.0,0.00015342,2]
[323035267,1713609056262,-1640.48,0.00015342,2]
[323035268,1713609056272,-500.0,0.00015342,2]
[323035269,1713609056283,-151.0,0.00015342,2]
[323035270,1713609056295,-772.99,0.00015342,2]
[323035271,1713609056306,-500.0,0.00015342,2]
[323035272,1713609056317,-500.0,0.00015342,2]
[323035273,1713609056328,-1495.21,0.00015342,2]
[323035274,1713609056340,-500.0,0.00015342,2]
[323035275,1713609056353,-500.0,0.00015342,2]
[323035276,1713609056363,-500.0,0.00015342,2]
[323035277,1713609056374,-500.0,0.00015342,2]
[323035278,1713609056384,-500.0,0.00015342,2]
[323035279,1713609056395,-900.03,0.00015342,2]
[323035280,1713609056406,-500.0,0.00015342,2]
[323035281,1713609056416,-952.49,0.00015342,2]
[323035282,1713609056426,-500.0,0.00015342,2]
[323035283,1713609056437,-500.0,0.00015342,2]
[323035284,1713609056447,-1042.87,0.00015342,2]
[323035285,1713609056458,-1186.31,0.00015342,2]
[323035286,1713609056473,-500.0,0.00015342,2]
[323035287,1713609056484,-500.0,0.00015342,2]
[323035288,1713609056494,-500.0,0.00015342,2]
[323035289,1713609056504,-500.0,0.00015342,2]
[323035290,1713609056515,-500.0,0.00015342,2]
[323035291,1713609056526,-522.89,0.00015342,2]
[323035292,1713609056536,-596.03,0.00015342,2]
[323035293,1713609056548,-500.0,0.00015342,2]
[323035294,1713609056558,-500.0,0.00015342,2]
[323035295,1713609056569,-500.0,0.00015342,2]
[323035296,1713609056580,-500.0,0.00015342,2]
[323035297,1713609056590,-500.0,0.00015342,2]
[323035298,1713609056601,-500.0,0.00015342,2]
[323035299,1713609056611,-557.42773001,0.00015342,2]
[323035300,1713609056622,-563.28,0.00015342,2]
[323035301,1713609056632,-561.91,0.00015342,2]
[323035302,1713609056643,-1292.26,0.00015342,2]
[323035303,1713609056653,-500.0,0.00015342,2]